[Event "Titled Tuesday Blitz May 10 Early 2022"]
[White "Rastbod, Ali"]
[Black "Stankovic, Ivan G"]
[WhiteFideId "12567477"]
[BlackFideId "902837"]
[WhiteElo "2147"]
[BlackElo "2195"]
[Result "1-0"]
[Round "07"]
[TimeControl "180+1"]
[Date "2022.05.11"]
[WhiteClock "0:00:17"]
[BlackClock "0:00:14"]

1. c4 {[%clk 0:03:00]}  c5 {[%clk 0:03:00]} 2. Nf3 {[%clk 0:02:58]}  Nc6 {[%clk 0:03:00]} 3. Nc3 {[%clk 0:02:57]}  e5 {[%clk 0:02:56]} 4. e3 {[%clk 0:02:57]}  Nf6 {[%clk 0:02:54]} 5. d4 {[%clk 0:02:56]}  exd4 {[%clk 0:02:53]} 6. exd4 {[%clk 0:02:57]}  cxd4 {[%clk 0:02:54]} 7. Nxd4 {[%clk 0:02:58]}  d5 {[%clk 0:02:54]} 8. Nxc6 {[%clk 0:02:55]}  bxc6 {[%clk 0:02:55]} 9. cxd5 {[%clk 0:02:56]}  Nxd5 {[%clk 0:02:47]} 10. Bc4 {[%clk 0:02:50]}  Bb4 {[%clk 0:02:38]} 11. O-O {[%clk 0:02:46]}  Bxc3 {[%clk 0:02:31]} 12. bxc3 {[%clk 0:02:25]}  O-O {[%clk 0:02:31]} 13. Qf3 {[%clk 0:02:23]}  Be6 {[%clk 0:02:23]} 14. Bb3 {[%clk 0:02:19]}  a5 {[%clk 0:01:27]} 15. Qg3 {[%clk 0:01:52]}  Qf6 {[%clk 0:01:21]} 16. Bd2 {[%clk 0:00:52]}  a4 {[%clk 0:01:21]} 17. Bc2 {[%clk 0:00:48]}  Bf5 {[%clk 0:01:01]} 18. Bxf5 {[%clk 0:00:34]}  Qxf5 {[%clk 0:01:01]} 19. c4 {[%clk 0:00:34]}  Nf6 {[%clk 0:00:59]} 20. Bc3 {[%clk 0:00:30]}  Rfd8 {[%clk 0:00:41]} 21. Rfd1 {[%clk 0:00:26]}  Qg6 {[%clk 0:00:20]} 22. Qxg6 {[%clk 0:00:18]}  hxg6 {[%clk 0:00:20]} 23. Bxf6 {[%clk 0:00:18]}  gxf6 {[%clk 0:00:19]} 24. f3 {[%clk 0:00:18]}  Kf8 {[%clk 0:00:18]} 25. Kf2 {[%clk 0:00:18]}  Rab8 {[%clk 0:00:16]} 26. Rxd8+ {[%clk 0:00:17]}  Rxd8 {[%clk 0:00:16]} 27. Ke3 {[%clk 0:00:16]}  Rb8 {[%clk 0:00:16]} 28. Rd1 {[%clk 0:00:15]}  Rb2 {[%clk 0:00:16]} 29. Rd2 {[%clk 0:00:16]}  a3 {[%clk 0:00:15]} 30. Kd3 {[%clk 0:00:16]}  Ke8 {[%clk 0:00:14]} 31. Rxb2 {[%clk 0:00:16]}  axb2 {[%clk 0:00:14]} 32. Kc2 {[%clk 0:00:16]}  Ke7 {[%clk 0:00:15]} 33. Kxb2 {[%clk 0:00:17]}  Kd6 {[%clk 0:00:14]} 34. Kc3 {[%clk 0:00:17]} 1-0


[Site "https://www.chess.com"]

[Event "Titled Tuesday Blitz May 10 Early 2022"]
[White "Sadhwani, Raunak"]
[Black "Rustemov, Alexander"]
[WhiteFideId "35093487"]
[BlackFideId "4119002"]
[WhiteElo "2616"]
[BlackElo "2712"]
[Result "1-0"]
[Round "07"]
[TimeControl "180+1"]
[Date "2022.05.10"]
[WhiteClock "0:00:35"]
[BlackClock "0:00:02"]

1. d4 {[%clk 0:03:00]}  d5 {[%clk 0:02:59]} 2. Nf3 {[%clk 0:03:01]}  Nf6 {[%clk 0:02:59]} 3. Bf4 {[%clk 0:03:02]}  c5 {[%clk 0:02:59]} 4. e3 {[%clk 0:03:02]}  Nc6 {[%clk 0:02:59]} 5. Nbd2 {[%clk 0:03:03]}  Bg4 {[%clk 0:02:59]} 6. c3 {[%clk 0:02:56]}  e6 {[%clk 0:02:58]} 7. Qb3 {[%clk 0:02:56]}  Qc8 {[%clk 0:02:58]} 8. h3 {[%clk 0:02:55]}  Bxf3 {[%clk 0:02:58]} 9. Nxf3 {[%clk 0:02:55]}  Be7 {[%clk 0:02:48]} 10. Be2 {[%clk 0:02:50]}  O-O {[%clk 0:02:48]} 11. O-O {[%clk 0:02:50]}  Rd8 {[%clk 0:02:39]} 12. Rfd1 {[%clk 0:02:47]}  a6 {[%clk 0:02:37]} 13. a4 {[%clk 0:02:34]}  c4 {[%clk 0:02:30]} 14. Qc2 {[%clk 0:02:33]}  b5 {[%clk 0:02:30]} 15. b4 {[%clk 0:02:28]}  h6 {[%clk 0:02:21]} 16. Ra2 {[%clk 0:02:11]}  Bd6 {[%clk 0:02:20]} 17. Rda1 {[%clk 0:02:04]}  Rb8 {[%clk 0:02:09]} 18. axb5 {[%clk 0:02:02]}  axb5 {[%clk 0:02:10]} 19. Ra6 {[%clk 0:02:00]}  Qc7 {[%clk 0:02:06]} 20. Bxd6 {[%clk 0:01:57]}  Rxd6 {[%clk 0:02:03]} 21. Ne5 {[%clk 0:01:53]}  Ne7 {[%clk 0:01:51]} 22. Ra7 {[%clk 0:01:49]}  Rb7 {[%clk 0:01:49]} 23. Ra8+ {[%clk 0:01:49]}  Rd8 {[%clk 0:01:48]} 24. R8a6 {[%clk 0:01:35]}  Ne4 {[%clk 0:01:35]} 25. Bh5 {[%clk 0:01:34]}  g6 {[%clk 0:01:33]} 26. Bf3 {[%clk 0:01:34]}  Nd6 {[%clk 0:01:32]} 27. h4 {[%clk 0:01:25]}  h5 {[%clk 0:01:32]} 28. g3 {[%clk 0:01:20]}  Kg7 {[%clk 0:01:31]} 29. Bg2 {[%clk 0:01:18]}  Rb6 {[%clk 0:01:29]} 30. Ra7 {[%clk 0:01:18]}  Rb7 {[%clk 0:01:29]} 31. R7a6 {[%clk 0:01:18]}  Rb6 {[%clk 0:01:29]} 32. R6a3 {[%clk 0:01:18]}  Rdb8 {[%clk 0:01:24]} 33. Bh3 {[%clk 0:01:18]}  Ne4 {[%clk 0:01:19]} 34. R1a2 {[%clk 0:01:12]}  R6b7 {[%clk 0:01:16]} 35. Qc1 {[%clk 0:01:10]}  Rc8 {[%clk 0:01:05]} 36. Bg2 {[%clk 0:01:09]}  Nd6 {[%clk 0:01:04]} 37. Qa1 {[%clk 0:01:08]}  Qd8 {[%clk 0:01:00]} 38. Ra6 {[%clk 0:01:07]}  Rcc7 {[%clk 0:00:54]} 39. Nf3 {[%clk 0:01:05]}  Nec8 {[%clk 0:00:51]} 40. Ng5 {[%clk 0:01:04]}  Ra7 {[%clk 0:00:48]} 41. Bh3 {[%clk 0:01:04]}  Rxa6 {[%clk 0:00:46]} 42. Rxa6 {[%clk 0:01:05]}  Qe7 {[%clk 0:00:45]} 43. Qa5 {[%clk 0:00:50]}  Ra7 {[%clk 0:00:44]} 44. Rxa7 {[%clk 0:00:51]}  Qxa7 {[%clk 0:00:43]} 45. Qd8 {[%clk 0:00:45]}  Qb6 {[%clk 0:00:28]} 46. Qd7 {[%clk 0:00:45]}  Qb7 {[%clk 0:00:15]} 47. Nxe6+ {[%clk 0:00:40]}  Kf6 {[%clk 0:00:15]} 48. Qd8+ {[%clk 0:00:36]}  Qe7 {[%clk 0:00:02]} 49. Qh8# {[%clk 0:00:35]} 1-0


[Site "https://www.chess.com"]

[Event "Titled Tuesday Blitz May 10 Early 2022"]
[White "Sadykov, Ramil"]
[Black "Kosteniuk, Alexandra"]
[WhiteFideId "24113590"]
[BlackFideId "4128125"]
[WhiteElo "2280"]
[BlackElo "2469"]
[Result "0-1"]
[Round "07"]
[TimeControl "180+1"]
[Date "2022.05.11"]
[WhiteClock "0:00:02"]
[BlackClock "0:01:01"]

1. d4 {[%clk 0:03:00]}  Nf6 {[%clk 0:02:59]} 2. Nc3 {[%clk 0:03:00]}  d5 {[%clk 0:02:56]} 3. Bf4 {[%clk 0:03:01]}  c5 {[%clk 0:02:55]} 4. e3 {[%clk 0:03:01]}  cxd4 {[%clk 0:02:49]} 5. exd4 {[%clk 0:03:01]}  Bg4 {[%clk 0:02:50]} 6. Nf3 {[%clk 0:02:45]}  Nc6 {[%clk 0:02:49]} 7. Be2 {[%clk 0:02:19]}  e6 {[%clk 0:02:49]} 8. Ne5 {[%clk 0:02:14]}  Bxe2 {[%clk 0:02:46]} 9. Nxe2 {[%clk 0:02:15]}  Nxe5 {[%clk 0:02:44]} 10. Bxe5 {[%clk 0:02:10]}  Nd7 {[%clk 0:02:43]} 11. Bg3 {[%clk 0:01:59]}  h5 {[%clk 0:02:43]} 12. h3 {[%clk 0:01:51]}  Nf6 {[%clk 0:02:41]} 13. c3 {[%clk 0:01:48]}  Ne4 {[%clk 0:02:41]} 14. Bf4 {[%clk 0:01:47]}  g5 {[%clk 0:02:39]} 15. Be3 {[%clk 0:01:36]}  Be7 {[%clk 0:02:37]} 16. Nc1 {[%clk 0:01:22]}  Qc7 {[%clk 0:02:24]} 17. Nd3 {[%clk 0:01:20]}  Bd6 {[%clk 0:02:16]} 18. a4 {[%clk 0:01:17]}  a5 {[%clk 0:02:13]} 19. Qb3 {[%clk 0:01:15]}  f5 {[%clk 0:02:07]} 20. Qb5+ {[%clk 0:01:09]}  Kf7 {[%clk 0:02:07]} 21. h4 {[%clk 0:00:50]}  f4 {[%clk 0:02:05]} 22. Bd2 {[%clk 0:00:49]}  g4 {[%clk 0:02:05]} 23. Nc5 {[%clk 0:00:39]}  Bxc5 {[%clk 0:01:54]} 24. dxc5 {[%clk 0:00:40]}  f3 {[%clk 0:01:32]} 25. gxf3 {[%clk 0:00:37]}  Nxc5 {[%clk 0:01:32]} 26. fxg4 {[%clk 0:00:31]}  hxg4 {[%clk 0:01:32]} 27. Qe2 {[%clk 0:00:28]}  Rag8 {[%clk 0:01:31]} 28. Be3 {[%clk 0:00:26]}  Ne4 {[%clk 0:01:28]} 29. Bd4 {[%clk 0:00:22]}  e5 {[%clk 0:01:27]} 30. Be3 {[%clk 0:00:18]}  Ke6 {[%clk 0:01:27]} 31. O-O-O {[%clk 0:00:17]}  Qc6 {[%clk 0:01:24]} 32. Qd3 {[%clk 0:00:13]}  d4 {[%clk 0:01:15]} 33. Bxd4 {[%clk 0:00:11]}  exd4 {[%clk 0:01:13]} 34. Rhe1 {[%clk 0:00:12]}  Kf5 {[%clk 0:01:13]} 35. Qxd4 {[%clk 0:00:09]}  Rd8 {[%clk 0:01:12]} 36. Qe3 {[%clk 0:00:07]}  Qh6 {[%clk 0:01:02]} 37. Qxh6 {[%clk 0:00:02]}  Rxd1+ {[%clk 0:01:02]} 38. Rxd1 {[%clk 0:00:03]}  Rxh6 {[%clk 0:01:02]} 39. Rd5+ {[%clk 0:00:02]}  Kf4 {[%clk 0:01:02]} 40. Rxa5 {[%clk 0:00:03]}  Nxf2 {[%clk 0:01:02]} 41. Kd2 {[%clk 0:00:01]}  Ne4+ {[%clk 0:01:01]} 42. Ke2 {[%clk 0:00:02]}  Rxh4 {[%clk 0:01:01]} 43. Rb5 {[%clk 0:00:01]}  Rh2+ {[%clk 0:01:01]} 44. Kd3 {[%clk 0:00:01]}  Rd2+ {[%clk 0:01:00]} 45. Kc4 {[%clk 0:00:02]}  Nd6+ {[%clk 0:01:01]} 0-1


[Site "https://www.chess.com"]

[Event "Titled Tuesday Blitz May 10 Early 2022"]
[White "Saldano Dayer, Horacio"]
[Black "Prieto Aranguren, Alain"]
[WhiteFideId "103411"]
[BlackFideId "2268906"]
[WhiteElo "2419"]
[BlackElo "2235"]
[Result "0-1"]
[Round "07"]
[TimeControl "180+1"]
[Date "2022.05.11"]
[WhiteClock "0:00:04"]
[BlackClock "0:00:16"]

1. d4 {[%clk 0:03:00]}  d5 {[%clk 0:02:57]} 2. Bf4 {[%clk 0:03:00]}  e6 {[%clk 0:02:56]} 3. Nc3 {[%clk 0:02:59]}  Bd6 {[%clk 0:02:56]} 4. e3 {[%clk 0:02:55]}  Ne7 {[%clk 0:02:55]} 5. Nf3 {[%clk 0:02:53]}  Ng6 {[%clk 0:02:55]} 6. Bg3 {[%clk 0:02:52]}  Nd7 {[%clk 0:02:53]} 7. Bd3 {[%clk 0:02:48]}  Nf6 {[%clk 0:02:53]} 8. Ne5 {[%clk 0:02:41]}  c5 {[%clk 0:02:49]} 9. Bb5+ {[%clk 0:02:28]}  Kf8 {[%clk 0:02:42]} 10. Bd3 {[%clk 0:02:27]}  Qb6 {[%clk 0:02:37]} 11. O-O {[%clk 0:02:17]}  cxd4 {[%clk 0:02:36]} 12. exd4 {[%clk 0:02:15]}  Bxe5 {[%clk 0:02:30]} 13. dxe5 {[%clk 0:02:10]}  Nd7 {[%clk 0:02:29]} 14. Qe1 {[%clk 0:01:40]}  Nc5 {[%clk 0:02:28]} 15. Kh1 {[%clk 0:01:36]}  Nxd3 {[%clk 0:02:27]} 16. cxd3 {[%clk 0:01:37]}  h5 {[%clk 0:02:16]} 17. h3 {[%clk 0:01:32]}  h4 {[%clk 0:02:14]} 18. Bh2 {[%clk 0:01:32]}  Ne7 {[%clk 0:02:13]} 19. b3 {[%clk 0:01:22]}  Bd7 {[%clk 0:02:11]} 20. Rc1 {[%clk 0:01:16]}  Nf5 {[%clk 0:02:10]} 21. Ne2 {[%clk 0:01:10]}  Ke7 {[%clk 0:02:08]} 22. Qd2 {[%clk 0:01:10]}  Rhc8 {[%clk 0:01:49]} 23. Qg5+ {[%clk 0:01:06]}  Kf8 {[%clk 0:01:49]} 24. Qf4 {[%clk 0:00:51]}  Rxc1 {[%clk 0:01:35]} 25. Rxc1 {[%clk 0:00:51]}  Rc8 {[%clk 0:01:35]} 26. Rxc8+ {[%clk 0:00:51]}  Bxc8 {[%clk 0:01:35]} 27. Qc1 {[%clk 0:00:51]}  Qc6 {[%clk 0:01:30]} 28. Qxc6 {[%clk 0:00:44]}  bxc6 {[%clk 0:01:30]} 29. f4 {[%clk 0:00:32]}  Ba6 {[%clk 0:01:27]} 30. Nc1 {[%clk 0:00:33]}  Ke7 {[%clk 0:01:21]} 31. Bg1 {[%clk 0:00:31]}  d4 {[%clk 0:01:08]} 32. Bf2 {[%clk 0:00:28]}  c5 {[%clk 0:01:07]} 33. Kg1 {[%clk 0:00:21]}  Kd7 {[%clk 0:01:07]} 34. Kf1 {[%clk 0:00:19]}  Kc7 {[%clk 0:01:06]} 35. Ke2 {[%clk 0:00:19]}  Bb7 {[%clk 0:01:02]} 36. Kf1 {[%clk 0:00:18]}  Kb6 {[%clk 0:01:02]} 37. a3 {[%clk 0:00:18]}  Bd5 {[%clk 0:00:57]} 38. b4 {[%clk 0:00:17]}  cxb4 {[%clk 0:00:55]} 39. axb4 {[%clk 0:00:16]}  Kb5 {[%clk 0:00:55]} 40. Ne2 {[%clk 0:00:16]}  Kxb4 {[%clk 0:00:52]} 41. Nxd4 {[%clk 0:00:16]}  Nxd4 {[%clk 0:00:46]} 42. Bxd4 {[%clk 0:00:17]}  a5 {[%clk 0:00:46]} 43. Ke1 {[%clk 0:00:16]}  Bxg2 {[%clk 0:00:42]} 44. Bf2 {[%clk 0:00:16]}  Kb3 {[%clk 0:00:38]} 45. Kd2 {[%clk 0:00:14]}  Kb2 {[%clk 0:00:34]} 46. Bd4+ {[%clk 0:00:13]}  Kb1 {[%clk 0:00:32]} 47. Kc3 {[%clk 0:00:12]}  Bxh3 {[%clk 0:00:31]} 48. Bf2 {[%clk 0:00:12]}  Bf5 {[%clk 0:00:25]} 49. Bxh4 {[%clk 0:00:11]}  Kc1 {[%clk 0:00:21]} 50. Be7 {[%clk 0:00:11]}  g6 {[%clk 0:00:20]} 51. Bd8 {[%clk 0:00:11]}  a4 {[%clk 0:00:19]} 52. Be7 {[%clk 0:00:10]}  Kd1 {[%clk 0:00:15]} 53. d4 {[%clk 0:00:10]}  Ke2 {[%clk 0:00:15]} 54. Kb4 {[%clk 0:00:08]}  Bc2 {[%clk 0:00:15]} 55. Kc3 {[%clk 0:00:07]}  Bb3 {[%clk 0:00:15]} 56. Bg5 {[%clk 0:00:05]}  Kf3 {[%clk 0:00:15]} 57. Bh6 {[%clk 0:00:04]}  Kg4 {[%clk 0:00:15]} 58. Bg5 {[%clk 0:00:04]}  Kf5 {[%clk 0:00:14]} 59. Bh6 {[%clk 0:00:04]}  Bd5 {[%clk 0:00:15]} 60. Bg5 {[%clk 0:00:04]}  a3 {[%clk 0:00:15]} 61. Be7 {[%clk 0:00:03]}  a2 {[%clk 0:00:15]} 62. Kb2 {[%clk 0:00:04]}  Kxf4 {[%clk 0:00:15]} 63. Bc5 {[%clk 0:00:04]}  g5 {[%clk 0:00:15]} 64. Bb4 {[%clk 0:00:03]}  g4 {[%clk 0:00:16]} 65. Bd2+ {[%clk 0:00:04]}  Kf3 {[%clk 0:00:16]} 0-1


[Site "https://www.chess.com"]

[Event "Titled Tuesday Blitz May 10 Early 2022"]
[White "Seo, Jung Min"]
[Black "Baches Garcia, Guillermo"]
[WhiteFideId "1734687"]
[BlackFideId "2209764"]
[WhiteElo "2401"]
[BlackElo "2530"]
[Result "1-0"]
[Round "07"]
[TimeControl "180+1"]
[Date "2022.05.11"]
[WhiteClock "0:01:16"]
[BlackClock "0:00:15"]

1. d4 {[%clk 0:03:00]}  Nf6 {[%clk 0:02:59]} 2. c4 {[%clk 0:03:01]}  e6 {[%clk 0:02:59]} 3. Nf3 {[%clk 0:03:01]}  d5 {[%clk 0:03:00]} 4. Nc3 {[%clk 0:03:01]}  c5 {[%clk 0:03:00]} 5. cxd5 {[%clk 0:02:59]}  Nxd5 {[%clk 0:03:01]} 6. e4 {[%clk 0:02:58]}  Nxc3 {[%clk 0:03:01]} 7. bxc3 {[%clk 0:02:59]}  cxd4 {[%clk 0:03:02]} 8. cxd4 {[%clk 0:02:59]}  Bb4+ {[%clk 0:03:02]} 9. Bd2 {[%clk 0:03:00]}  Bxd2+ {[%clk 0:03:03]} 10. Qxd2 {[%clk 0:03:01]}  O-O {[%clk 0:03:03]} 11. Bc4 {[%clk 0:03:00]}  Nd7 {[%clk 0:03:03]} 12. O-O {[%clk 0:03:00]}  b6 {[%clk 0:03:04]} 13. Rfe1 {[%clk 0:03:00]}  Bb7 {[%clk 0:03:04]} 14. Rad1 {[%clk 0:02:59]}  Rc8 {[%clk 0:03:04]} 15. Bb3 {[%clk 0:02:59]}  Re8 {[%clk 0:03:04]} 16. Re3 {[%clk 0:02:57]}  Nf6 {[%clk 0:02:57]} 17. Rde1 {[%clk 0:02:57]}  h6 {[%clk 0:02:49]} 18. h3 {[%clk 0:02:57]}  b5 {[%clk 0:02:49]} 19. a4 {[%clk 0:02:33]}  a6 {[%clk 0:02:38]} 20. axb5 {[%clk 0:02:33]}  axb5 {[%clk 0:02:39]} 21. Qb4 {[%clk 0:02:30]}  Rb8 {[%clk 0:02:21]} 22. Ne5 {[%clk 0:02:27]}  Ba8 {[%clk 0:02:08]} 23. f3 {[%clk 0:02:19]}  Qb6 {[%clk 0:02:02]} 24. Rd1 {[%clk 0:02:11]}  Red8 {[%clk 0:01:59]} 25. Red3 {[%clk 0:02:11]}  Nd7 {[%clk 0:01:52]} 26. Ng4 {[%clk 0:02:01]}  h5 {[%clk 0:01:40]} 27. Ne3 {[%clk 0:02:00]}  Nf6 {[%clk 0:01:24]} 28. Kh1 {[%clk 0:01:56]}  h4 {[%clk 0:01:13]} 29. d5 {[%clk 0:01:50]}  e5 {[%clk 0:01:00]} 30. Nf5 {[%clk 0:01:45]}  Nh5 {[%clk 0:00:52]} 31. Qe7 {[%clk 0:01:42]}  Qf2 {[%clk 0:00:26]} 32. d6 {[%clk 0:01:33]}  Rf8 {[%clk 0:00:16]} 33. d7 {[%clk 0:01:22]}  Rbd8 {[%clk 0:00:15]} 34. Bxf7+ {[%clk 0:01:16]} 1-0


[Site "https://www.chess.com"]

[Event "Titled Tuesday Blitz May 10 Early 2022"]
[White "Silva, Mariana Sofia T."]
[Black "Petrova, Irina"]
[WhiteFideId "1911899"]
[BlackFideId "14124122"]
[WhiteElo "1825"]
[BlackElo "1993"]
[Result "0-1"]
[Round "07"]
[TimeControl "180+1"]
[Date "2022.05.11"]
[WhiteClock "0:01:03"]
[BlackClock "0:02:07"]

1. d4 {[%clk 0:02:58]}  d6 {[%clk 0:02:59]} 2. c4 {[%clk 0:02:56]}  e5 {[%clk 0:02:59]} 3. dxe5 {[%clk 0:02:50]}  dxe5 {[%clk 0:02:59]} 4. Qxd8+ {[%clk 0:02:47]}  Kxd8 {[%clk 0:03:00]} 5. Nc3 {[%clk 0:02:43]}  c6 {[%clk 0:03:00]} 6. g3 {[%clk 0:02:41]}  Be6 {[%clk 0:02:58]} 7. b3 {[%clk 0:02:39]}  Nd7 {[%clk 0:02:56]} 8. Bg2 {[%clk 0:02:39]}  f6 {[%clk 0:02:56]} 9. Be3 {[%clk 0:02:38]}  Ne7 {[%clk 0:02:54]} 10. O-O-O {[%clk 0:02:36]}  Kc7 {[%clk 0:02:54]} 11. Nf3 {[%clk 0:02:31]}  Nc8 {[%clk 0:02:52]} 12. Kb2 {[%clk 0:02:25]}  Ncb6 {[%clk 0:02:52]} 13. Nd2 {[%clk 0:02:11]}  a5 {[%clk 0:02:50]} 14. Nde4 {[%clk 0:02:08]}  Be7 {[%clk 0:02:44]} 15. Rd2 {[%clk 0:01:51]}  a4 {[%clk 0:02:35]} 16. Rhd1 {[%clk 0:01:49]}  axb3 {[%clk 0:02:35]} 17. axb3 {[%clk 0:01:48]}  Ba3+ {[%clk 0:02:21]} 18. Kc2 {[%clk 0:01:40]}  Bb4 {[%clk 0:02:19]} 19. h3 {[%clk 0:01:11]}  Ra3 {[%clk 0:02:10]} 20. Nb1 {[%clk 0:01:03]}  Ra2+ {[%clk 0:02:07]} 0-1


[Site "https://www.chess.com"]

[Event "Titled Tuesday Blitz May 10 Early 2022"]
[White "Sjugirov, Sanan"]
[Black "Dardha, Daniel"]
[WhiteFideId "4189302"]
[BlackFideId "240990"]
[WhiteElo "2602"]
[BlackElo "2482"]
[Result "1-0"]
[Round "07"]
[TimeControl "180+1"]
[Date "2022.05.10"]
[WhiteClock "0:00:09"]
[BlackClock "0:00:07"]

1. e4 {[%clk 0:03:00]}  c5 {[%clk 0:02:59]} 2. Nc3 {[%clk 0:03:00]}  Nc6 {[%clk 0:02:57]} 3. Nge2 {[%clk 0:02:59]}  g6 {[%clk 0:02:53]} 4. d4 {[%clk 0:02:58]}  cxd4 {[%clk 0:02:54]} 5. Nxd4 {[%clk 0:02:59]}  Bg7 {[%clk 0:02:55]} 6. Be3 {[%clk 0:02:59]}  Nf6 {[%clk 0:02:55]} 7. Bc4 {[%clk 0:02:57]}  Qa5 {[%clk 0:02:53]} 8. O-O {[%clk 0:02:50]}  O-O {[%clk 0:02:53]} 9. Bb3 {[%clk 0:02:47]}  d6 {[%clk 0:02:52]} 10. f3 {[%clk 0:02:39]}  Bd7 {[%clk 0:02:46]} 11. Qd2 {[%clk 0:02:36]}  Nxd4 {[%clk 0:02:31]} 12. Bxd4 {[%clk 0:02:36]}  Bc6 {[%clk 0:02:31]} 13. Rad1 {[%clk 0:02:34]}  Nd7 {[%clk 0:02:29]} 14. Nd5 {[%clk 0:02:14]}  Bxd4+ {[%clk 0:02:21]} 15. Qxd4 {[%clk 0:02:15]}  Bxd5 {[%clk 0:02:21]} 16. exd5 {[%clk 0:02:15]}  Qc5 {[%clk 0:02:20]} 17. Rfe1 {[%clk 0:02:12]}  Rfe8 {[%clk 0:02:04]} 18. Ba4 {[%clk 0:02:11]}  Rad8 {[%clk 0:02:02]} 19. Re3 {[%clk 0:01:57]}  Qxd4 {[%clk 0:01:54]} 20. Rxd4 {[%clk 0:01:58]}  a6 {[%clk 0:01:49]} 21. c4 {[%clk 0:01:51]}  Kf8 {[%clk 0:01:46]} 22. b4 {[%clk 0:01:42]}  b5 {[%clk 0:01:24]} 23. cxb5 {[%clk 0:01:42]}  Nb6 {[%clk 0:01:24]} 24. Bd1 {[%clk 0:01:40]}  axb5 {[%clk 0:01:20]} 25. Be2 {[%clk 0:01:40]}  Rc8 {[%clk 0:01:13]} 26. Bxb5 {[%clk 0:01:39]}  Rc1+ {[%clk 0:01:12]} 27. Kf2 {[%clk 0:01:38]}  Ra8 {[%clk 0:01:12]} 28. Re2 {[%clk 0:01:35]}  Ra3 {[%clk 0:01:00]} 29. Bc6 {[%clk 0:01:02]}  Ra1 {[%clk 0:00:53]} 30. Rde4 {[%clk 0:01:00]}  R1xa2 {[%clk 0:00:52]} 31. Rxe7 {[%clk 0:00:59]}  Rxe2+ {[%clk 0:00:51]} 32. Rxe2 {[%clk 0:01:00]}  Rb3 {[%clk 0:00:49]} 33. b5 {[%clk 0:00:59]}  h5 {[%clk 0:00:34]} 34. h4 {[%clk 0:00:58]}  Rd3 {[%clk 0:00:29]} 35. Re8+ {[%clk 0:00:55]}  Kg7 {[%clk 0:00:29]} 36. Rd8 {[%clk 0:00:54]}  Nc4 {[%clk 0:00:24]} 37. Rb8 {[%clk 0:00:23]}  Rd2+ {[%clk 0:00:18]} 38. Kg3 {[%clk 0:00:20]}  Rb2 {[%clk 0:00:16]} 39. Rb7 {[%clk 0:00:19]}  Ne3 {[%clk 0:00:12]} 40. Be8 {[%clk 0:00:17]}  Rxg2+ {[%clk 0:00:11]} 41. Kh3 {[%clk 0:00:18]}  Rb2 {[%clk 0:00:09]} 42. Rxf7+ {[%clk 0:00:17]}  Kh6 {[%clk 0:00:08]} 43. Rf6 {[%clk 0:00:16]}  Nxd5 {[%clk 0:00:08]} 44. Rxg6+ {[%clk 0:00:16]}  Kh7 {[%clk 0:00:09]} 45. Rg5 {[%clk 0:00:11]}  Nf6 {[%clk 0:00:04]} 46. Bxh5 {[%clk 0:00:09]}  d5 {[%clk 0:00:04]} 47. Bg6+ {[%clk 0:00:07]}  Kh6 {[%clk 0:00:04]} 48. Bd3 {[%clk 0:00:08]}  Rb3 {[%clk 0:00:04]} 49. Rg6+ {[%clk 0:00:08]}  Kh5 {[%clk 0:00:04]} 50. Rxf6 {[%clk 0:00:08]}  Rxd3 {[%clk 0:00:04]} 51. Kg3 {[%clk 0:00:08]}  Rb3 {[%clk 0:00:03]} 52. Rf5+ {[%clk 0:00:08]}  Kg6 {[%clk 0:00:04]} 53. Rxd5 {[%clk 0:00:09]}  Kh6 {[%clk 0:00:04]} 54. Rc5 {[%clk 0:00:08]}  Kg6 {[%clk 0:00:05]} 55. Rc6+ {[%clk 0:00:08]}  Kh5 {[%clk 0:00:05]} 56. Rc5+ {[%clk 0:00:09]}  Kg6 {[%clk 0:00:05]} 57. Kg4 {[%clk 0:00:09]}  Rb4+ {[%clk 0:00:05]} 58. f4 {[%clk 0:00:09]}  Kf6 {[%clk 0:00:05]} 59. Rc6+ {[%clk 0:00:08]}  Ke7 {[%clk 0:00:05]} 60. b6 {[%clk 0:00:09]}  Kd7 {[%clk 0:00:06]} 61. Rg6 {[%clk 0:00:09]}  Rb5 {[%clk 0:00:06]} 62. h5 {[%clk 0:00:09]}  Ke7 {[%clk 0:00:06]} 63. h6 {[%clk 0:00:09]}  Rxb6 {[%clk 0:00:07]} 64. Rxb6 {[%clk 0:00:09]} 1-0


[Site "https://www.chess.com"]

[Event "Titled Tuesday Blitz May 10 Early 2022"]
[White "Srihari L R"]
[Black "Aaditya Dhingra"]
[WhiteFideId "46617116"]
[BlackFideId "25678191"]
[WhiteElo "2121"]
[BlackElo "1849"]
[Result "1-0"]
[Round "07"]
[TimeControl "180+1"]
[Date "2022.05.11"]
[WhiteClock "0:01:07"]
[BlackClock "0:00:10"]

1. Nf3 {[%clk 0:03:00]}  Nf6 {[%clk 0:02:59]} 2. g3 {[%clk 0:02:59]}  d5 {[%clk 0:02:57]} 3. Bg2 {[%clk 0:02:59]}  Bg4 {[%clk 0:02:57]} 4. O-O {[%clk 0:02:58]}  Nbd7 {[%clk 0:02:56]} 5. c4 {[%clk 0:02:57]}  c6 {[%clk 0:02:55]} 6. cxd5 {[%clk 0:02:55]}  cxd5 {[%clk 0:02:54]} 7. Nc3 {[%clk 0:02:52]}  e6 {[%clk 0:02:54]} 8. d3 {[%clk 0:02:51]}  a6 {[%clk 0:02:51]} 9. h3 {[%clk 0:02:49]}  Bxf3 {[%clk 0:02:50]} 10. Bxf3 {[%clk 0:02:49]}  Bd6 {[%clk 0:02:50]} 11. e4 {[%clk 0:02:47]}  d4 {[%clk 0:02:48]} 12. Ne2 {[%clk 0:02:47]}  e5 {[%clk 0:02:42]} 13. Bg2 {[%clk 0:02:47]}  O-O {[%clk 0:02:42]} 14. f4 {[%clk 0:02:46]}  Rc8 {[%clk 0:02:37]} 15. f5 {[%clk 0:02:41]}  Qc7 {[%clk 0:02:27]} 16. g4 {[%clk 0:02:28]}  h6 {[%clk 0:02:14]} 17. Ng3 {[%clk 0:02:24]}  Qc2 {[%clk 0:02:12]} 18. Bf3 {[%clk 0:02:23]}  Qxd1 {[%clk 0:02:10]} 19. Bxd1 {[%clk 0:02:24]}  Nc5 {[%clk 0:02:06]} 20. Rf3 {[%clk 0:02:24]}  Nfd7 {[%clk 0:02:02]} 21. h4 {[%clk 0:02:23]}  Rc6 {[%clk 0:01:30]} 22. b4 {[%clk 0:02:21]}  Nxd3 {[%clk 0:01:17]} 23. Rxd3 {[%clk 0:02:19]}  Bxb4 {[%clk 0:01:17]} 24. g5 {[%clk 0:02:16]}  Nc5 {[%clk 0:01:12]} 25. Rf3 {[%clk 0:02:14]}  hxg5 {[%clk 0:01:02]} 26. hxg5 {[%clk 0:02:15]}  Be1 {[%clk 0:01:01]} 27. Ba3 {[%clk 0:02:08]}  Rfc8 {[%clk 0:00:57]} 28. Bxc5 {[%clk 0:02:03]}  Rxc5 {[%clk 0:00:56]} 29. g6 {[%clk 0:02:03]}  Rc1 {[%clk 0:00:49]} 30. gxf7+ {[%clk 0:01:49]}  Kf8 {[%clk 0:00:48]} 31. Rxc1 {[%clk 0:01:45]}  Rxc1 {[%clk 0:00:47]} 32. Bb3 {[%clk 0:01:46]}  Bxg3+ {[%clk 0:00:47]} 33. Kg2 {[%clk 0:01:46]}  Bf4 {[%clk 0:00:45]} 34. Rh3 {[%clk 0:01:41]}  Bh6 {[%clk 0:00:44]} 35. f6 {[%clk 0:01:40]}  Rc3 {[%clk 0:00:39]} 36. Rh5 {[%clk 0:01:33]}  Rc5 {[%clk 0:00:24]} 37. Bd5 {[%clk 0:01:22]}  Rxd5 {[%clk 0:00:14]} 38. exd5 {[%clk 0:01:22]}  d3 {[%clk 0:00:14]} 39. Kf3 {[%clk 0:01:18]}  e4+ {[%clk 0:00:14]} 40. Kxe4 {[%clk 0:01:18]}  d2 {[%clk 0:00:14]} 41. Rh1 {[%clk 0:01:18]}  gxf6 {[%clk 0:00:14]} 42. Kd3 {[%clk 0:01:18]}  Kxf7 {[%clk 0:00:13]} 43. Kc2 {[%clk 0:01:16]}  Bf4 {[%clk 0:00:13]} 44. Rh7+ {[%clk 0:01:15]}  Ke8 {[%clk 0:00:11]} 45. Rxb7 {[%clk 0:01:16]}  Kd8 {[%clk 0:00:11]} 46. Rb6 {[%clk 0:01:14]}  Bg5 {[%clk 0:00:09]} 47. Rxa6 {[%clk 0:01:13]}  Kd7 {[%clk 0:00:10]} 48. Rc6 {[%clk 0:01:12]}  f5 {[%clk 0:00:10]} 49. Rg6 {[%clk 0:01:11]}  Be3 {[%clk 0:00:10]} 50. a4 {[%clk 0:01:06]}  f4 {[%clk 0:00:10]} 51. Rf6 {[%clk 0:01:06]}  Ke7 {[%clk 0:00:10]} 52. Re6+ {[%clk 0:01:06]}  Kd7 {[%clk 0:00:10]} 53. a5 {[%clk 0:01:07]} 1-0


[Site "https://www.chess.com"]